fUST/lending_fUST_20260122
["ID","MTS","AMOUNT","RATE_DAILY","PERIOD"]
[403015368,1769061038709,-201.93286099,0.00020026,2]
[403015369,1769061038718,-209.40437684,0.00020026,2]
[403015370,1769061038727,-217.15233878,0.00020026,2]
[403015371,1769061038736,-225.18697532,0.00020026,2]
[403015372,1769061038746,-233.51889341,0.00020026,2]
[403015373,1769061038755,-242.15909246,0.00020026,2]
[403015374,1769061038764,-251.11897888,0.00020026,2]
[403015376,1769061038773,-260.4103811,0.00020026,2]
[403015377,1769061038782,-270.0455652,0.00020026,2]
[403015378,1769061038791,-280.03725112,0.00020026,2]
[403015379,1769061038800,-290.39862941,0.00020026,2]
[403015380,1769061038810,-357.08896413,0.00020026,2]
[403015381,1769061038819,-250.0,0.000201,10]
[403015382,1769061038829,-360.0,0.00020191,120]
[403015383,1769061038838,-250.0,0.000202,10]
[403015384,1769061038847,-467.0293683,0.0002026,10]
[403015385,1769061038858,-32.9706317,0.0002026,10]
[403015386,1769061038869,-437.29047214,0.0002026,2]
[403015387,1769061038878,-312.0,0.00020298,120]
[403015388,1769061038887,-250.0,0.000203,10]
[403015389,1769061038896,-250.0,0.000204,10]
[403015390,1769061038906,-165.0,0.000204,120]
[403015391,1769061038915,-170.0,0.000204,120]
[403015392,1769061038924,-250.0,0.000205,10]
[403015393,1769061038934,-1947.96,0.00020569,2]
[403015394,1769061038943,-2071.160694,0.00020574,2]
[403015395,1769061038953,-250.0,0.000206,10]
[403015396,1769061038966,-420.0,0.00020658,2]
[403015397,1769061038975,-624.64,0.000207,4]
[403015398,1769061038985,-250.0,0.000207,10]
[403015399,1769061038994,-6684.16073495,0.000208,2]
[403015400,1769061039004,-250.0,0.000208,10]
[403015401,1769061039015,-250.0,0.000209,10]
[403015402,1769061039024,-800.0,0.00020902,2]
[403015403,1769061039036,-800.0,0.00020905,2]
[403015404,1769061039046,-800.0,0.00020977,2]
[403015405,1769061039056,-6807.16,0.00020979,2]
[403015406,1769061039065,-800.0,0.0002098,2]
[403015407,1769061039075,-3000.0,0.00021,2]
[403015408,1769061039084,-2000.0,0.00021,2]
[403015409,1769061039094,-250.0,0.00021,10]
[403015410,1769061039107,-3000.0,0.0002101,2]
[403015411,1769061039116,-3000.0,0.0002102,2]
[403015412,1769061039126,-526.04477486,0.00021027,2]
[403015413,1769061039136,-161.02192434,0.00021029,2]
[403015414,1769061039145,-3000.0,0.0002103,2]
[403015415,1769061039154,-3000.0,0.0002104,2]
[403015416,1769061039164,-3000.0,0.0002105,2]
[403015417,1769061039174,-3000.0,0.0002106,2]
[403015418,1769061039183,-3000.0,0.0002107,2]
[403015419,1769061039193,-3000.0,0.0002108,2]
[403015420,1769061039202,-168.3888056,0.00021087,2]
[403015421,1769061039212,-3000.0,0.0002109,2]
[403015422,1769061039221,-3000.0,0.000211,2]
[403015423,1769061039230,-26459.58027871,0.000211,2]
[403015424,1769061039242,-3456.62402576,0.000211,2]
[403015425,1769061039254,-61615.42575399,0.000211,2]
[403015549,1769061043458,-7400.54410698,0.00020967,10]
[403015560,1769061046451,-44819.62388123,0.00020967,10]
[403015561,1769061046462,-925.61998,0.00020967,10]
[403015562,1769061046850,-1936.41441591,0.00020967,10]
[403015563,1769061069525,150.0,0.00014579,2]
[403015564,1769061069927,150.0,0.00015274,2]
[403015565,1769061070322,175.32,0.00015968,2]
[403015566,1769061070743,233.76,0.00016662,2]
[403015567,1769061071642,292.19,0.00017356,2]
[403015568,1769061072056,350.63,0.00018051,2]
[403015569,1769061072461,409.07,0.00018745,2]
[403015570,1769061073030,467.51,0.00019439,2]
[403015571,1769061080967,553.5,0.00019439,5]
[403015572,1769061081088,449.5,0.00019439,5]
[403015573,1769061342116,-150.0,0.00014611,2]
[403015574,1769061499241,150.0,0.00014513,2]
[403015575,1769061582503,150.0,0.00014446,2]
[403015576,1769061738867,150.0,0.00014536,2]
[403015579,1769061819824,150.0,0.00014478,2]
[403015580,1769061900592,150.0,0.00014414,2]
[403015581,1769061982510,150.0,0.00014433,2]
[403015582,1769062058459,150.0,0.00014409,2]
[403015583,1769062102701,-168.18,0.00015095,2]
[403015584,1769062102733,-252.27,0.00015782,2]
[403015585,1769062102765,-336.36,0.00016468,2]
[403015586,1769062102792,-600.02097878,0.000169,30]
[403015587,1769062102821,-1041.66666667,0.00017103,2]
[403015588,1769062102856,-420.45,0.00017154,2]
[403015589,1769062102887,-504.54,0.0001784,2]
[403015590,1769062102917,-588.64,0.00018526,2]
[403015591,1769062102945,-156.0,0.00018959,3]
[403015592,1769062102973,-170.0,0.00019155,120]
[403015593,1769062103000,-172.0,0.00019155,120]
[403015594,1769062103031,-507.0247091,0.00019212,2]
[403015595,1769062103076,-165.7052909,0.00019212,2]
[403015596,1769062103105,-401.822,0.00019365,2]
[403015597,1769062103133,-178.0,0.00019365,2]
[403015598,1769062103162,-300.0,0.00019451,2]
[403015599,1769062103194,-1200.0,0.00019452,2]
[403015600,1769062103226,-1200.0,0.00019452,2]
[403015601,1769062103256,-1200.0,0.00019452,2]
[403015602,1769062103299,-1200.0,0.00019452,2]
[403015603,1769062103328,-1200.0,0.00019452,2]
[403015604,1769062103366,-1200.0,0.00019452,2]
[403015605,1769062103402,-1200.0,0.00019452,2]
[403015606,1769062103446,-1200.0,0.00019452,2]
[403015607,1769062103480,-1200.0,0.00019452,2]
[403015608,1769062103512,-1200.0,0.00019452,2]
[403015609,1769062103553,-1200.0,0.00019452,2]
[403015610,1769062103595,-1200.0,0.00019452,2]
[403015611,1769062103627,-1200.0,0.00019452,2]
[403015612,1769062103656,-1200.0,0.00019452,2]
[403015613,1769062103685,-379.07378074,0.00019452,2]
[403015614,1769062103719,-756.82,0.00019899,2]
[403015615,1769062132317,150.0,0.00014389,2]
[403015616,1769062205782,150.0,0.00014369,2]
[403015645,1769062232489,-150.0,0.00015075,2]
[403015647,1769062232499,-112.228,0.0001576,2]
[403015685,1769062238504,-37.772,0.0001576,2]
[403015686,1769062238514,-150.0,0.00016445,2]
[403015687,1769062238523,-172.66,0.00017106,2]
[403015688,1769062238532,-207.2,0.0001779,2]
[403015689,1769062238543,-241.73,0.00018474,2]
[403015690,1769062238552,-276.26,0.00019158,2]
[403015691,1769062238561,-310.79,0.00019843,2]
[403015692,1769062238571,-449.701086,0.0002,10]
[403015693,1769062238580,-429.88533072,0.00020026,2]
[403015694,1769062238590,-170.0,0.00020112,120]
[403015695,1769062238599,-345.33,0.00020527,2]
[403015696,1769062238608,-799.61999144,0.00020864,2]
[403015697,1769062238618,-3948.63487806,0.0002099,2]
[403015698,1769062238627,-300.0,0.00020999,2]
[403015699,1769062238637,-3000.0,0.00021,2]
[403015700,1769062238647,-3000.0,0.0002101,2]
[403015701,1769062238659,-3000.0,0.0002102,2]
[403015702,1769062238668,-3000.0,0.0002103,2]
[403015703,1769062238677,-3000.0,0.0002104,2]
[403015704,1769062238687,-4255.09888,0.0002105,2]
[403015705,1769062238696,-62232.67926215,0.00021096,10]
[403015710,1769062240754,-1261.2131446,0.0002109,10]
[403015713,1769062241326,-59833.9568554,0.0002109,10]
[403015714,1769062241336,-2069.59073785,0.00021096,10]
[403015715,1769062241345,-25456.49484323,0.000211,2]
[403015716,1769062241354,-151.0,0.000211,2]
[403015717,1769062241363,-152.054602,0.000211,2]
[403015718,1769062241373,-151.0,0.000211,2]
[403015719,1769062241382,-151.0,0.000211,2]
[403015720,1769062241392,-207.180611,0.000211,2]
[403015721,1769062241402,-207.180611,0.000211,2]
[403015722,1769062241411,-207.180611,0.000211,2]
[403015723,1769062241420,-207.180611,0.000211,2]
[403015724,1769062241429,-433.718177,0.000211,2]
[403015725,1769062241439,-433.718177,0.000211,2]
[403015726,1769062241449,-151.0,0.00021116,2]
[403015727,1769062241458,-151.0,0.00021116,2]
[403015728,1769062241467,-207.180611,0.00021116,2]
[403015729,1769062241476,-207.180611,0.00021116,2]
[403015730,1769062241485,-207.180611,0.00021116,2]
[403015731,1769062241494,-207.180611,0.00021116,2]
[403015732,1769062241503,-433.718177,0.00021116,2]
[403015733,1769062241514,-433.718177,0.00021116,2]
[403015734,1769062241525,-170.0,0.00021118,120]
[403015735,1769062241534,-151.0,0.00021126,2]
[403015736,1769062241543,-166.066864,0.00021126,2]
[403015737,1769062241552,-207.180611,0.00021126,2]
[403015738,1769062241561,-207.180611,0.00021126,2]
[403015739,1769062241571,-207.180611,0.00021126,2]
[403015740,1769062241580,-207.180611,0.00021126,2]
[403015741,1769062241590,-433.718177,0.00021126,2]
[403015742,1769062241599,-6523.53,0.00021136,2]
[403015743,1769062241608,-292.004943,0.00021167,2]
[403015744,1769062241616,-155.81465549,0.00021167,2]
[403015757,1769062245462,-433.718177,0.000211,2]
[403015758,1769062245471,-24.301823,0.000211,2]
[403015759,1769062245483,-409.416354,0.000211,2]
[403015760,1769062245493,-433.718177,0.00021116,2]
[403015761,1769062245502,-433.718177,0.00021116,2]
[403015762,1769062245511,-433.718177,0.00021126,2]
[403015763,1769062245520,-433.718177,0.00021126,2]
[403015764,1769062245529,-433.718177,0.00021126,2]
[403015765,1769062245538,-51.36595551,0.00021167,2]
[403015766,1769062245547,-207.180611,0.00021167,2]
[403015767,1769062245556,-207.180611,0.00021167,2]
[403015768,1769062245566,-207.180611,0.00021167,2]
[403015769,1769062245574,-433.718177,0.00021167,2]
[403015770,1769062245584,-433.718177,0.00021167,2]
[403015771,1769062245594,-433.718177,0.00021167,2]
[403015772,1769062245603,-433.718177,0.00021167,2]
[403015773,1769062245612,-308.19307308,0.00021167,2]
[403015775,1769062246514,-13346.94,0.00021167,2]
[403015776,1769062270128,500.0,0.00013273,2]
[403015777,1769062270173,506.76868078,0.00013821,2]
[403015778,1769062329847,471.82677032,0.00013273,2]
[403015779,1769062330515,5092.85770469,0.00012878,2]
[403015780,1769062412541,150.0,0.00014491,2]
[403015781,1769062420643,504.70219853,0.00012212,2]
[403015782,1769062477933,150.0,0.0001445,2]
[403015783,1769062503139,1005.0,0.0001,6]
[403015784,1769062518125,168.0,4.2e-07,2]
[403015789,1769062606293,150.0,0.00014363,2]
[403015790,1769062756436,-150.0,0.00014755,2]
[403015791,1769062756460,-5.13000003,0.00015107,2]
[403015792,1769062802520,-150.0,0.00014784,2]
[403015793,1769062802545,-29.84925983,0.00015107,2]
[403015794,1769062817021,-115.02074014,0.00015107,2]
[403015795,1769062817047,-119.0037875,0.00015107,2]
[403015796,1769062820126,-245.85,0.00015107,2]
[403015797,1769062924765,-150.0,0.00014759,2]
[403015798,1769062924789,-90.72786066,0.00015107,2]
[403015799,1769062936422,-150.0,0.0001475,2]
[403015800,1769062936452,-53.20803785,0.00015107,2]
[403015801,1769062996454,-150.0,0.00014842,2]
[403015802,1769062996476,-24.51418827,0.00015107,2]
[403015803,1769063071405,-150.0,0.00014752,2]
[403015804,1769063071428,-96.91527674,0.0001493,2]
[403015805,1769063074680,-53.08472326,0.0001493,2]
[403015806,1769063074704,-103.69612572,0.00015107,2]
[403015807,1769063074742,-32.69873445,0.00015461,2]
[403015808,1769063083757,172.715,0.00013699,2]
[403015809,1769063126033,150.0,0.00014483,2]
[403015811,1769063265000,150.0,0.00014411,2]
[403015815,1769063318981,150.90448713,0.00011,2]
[403015816,1769063333126,150.0,0.00014375,2]
[403015817,1769063341502,-242.38,0.00015059,2]
[403015818,1769063341531,-171.52002795,0.00015744,2]
[403015819,1769063413841,150.0,0.00014435,2]
[403015820,1769063416418,-238.56,0.00015122,2]
[403015821,1769063416448,-105.43832277,0.0001581,2]
[403015822,1769063419152,-193.4539033,0.0001581,2]
[403015853,1769063432560,-58.94777393,0.0001581,2]
[403015855,1769063432570,-150.0,0.00016086,2]
[403015857,1769063432579,-477.11,0.00016497,2]
[403015859,1769063432589,-150.95471358,0.00016749,5]
[403015861,1769063432598,-315.95452131,0.00017184,2]
[403016003,1769063438734,-280.43547869,0.00017184,2]
[403016005,1769063438744,-150.95471358,0.00017749,5]
[403016006,1769063438754,-41.84992125,0.00017872,2]
[403016008,1769063438793,-673.82007875,0.00017872,2]
[403016009,1769063438803,-177.0,0.00018086,2]
[403016010,1769063438812,-834.95,0.00018559,2]
[403016011,1769063438822,-150.95471358,0.00018749,5]
[403016012,1769063438831,-164.0,0.00019014,3]
[403016013,1769063438841,-954.23,0.00019246,2]
[403016014,1769063438851,-1041.66666667,0.00019487,2]
[403016015,1769063438860,-300.0,0.00019748,2]
[403016016,1769063438872,-150.95471358,0.00019749,5]
[403016017,1769063438882,-1073.51,0.00019934,2]
[403016018,1769063438891,-461.67526834,0.00019976,2]
[403016019,1769063438900,-2230.315306,0.00019976,2]
[403016020,1769063438910,-150.31853488,0.0002,7]
[403016021,1769063438920,-1371.522,0.00020028,2]
[403016022,1769063438929,-2158.702,0.00020028,2]
[403016023,1769063438939,-283.594,0.00020028,2]
[403016024,1769063438948,-417.313,0.00020028,2]
[403016025,1769063438957,-268.9869475,0.00020086,2]
[403016026,1769063438966,-501.93281448,0.00020176,5]
[403016027,1769063438979,-478.75725327,0.00020524,2]
[403016028,1769063438989,-2312.83697232,0.00020524,2]
[403016029,1769063438999,-1192.79,0.00020621,2]
[403016030,1769063439008,-779.0,0.000207,2]
[403016031,1769063439017,-150.95471358,0.00020749,5]
[403016032,1769063439027,-1657.01582325,0.00020835,2]
[403016033,1769063439037,-154.42116045,0.00020864,60]
[403016034,1769063439046,-155.77898223,0.00020864,60]
[403016035,1769063439055,-155.15154691,0.00020864,60]
[403016036,1769063439065,-251.06102251,0.00020881,2]
[403016037,1769063439075,-3362.74315868,0.0002099,2]
[403016038,1769063439084,-173.19357026,0.00021057,2]
[403016039,1769063439094,-173.19357025,0.0002106,2]
[403016040,1769063439104,-173.19357025,0.0002106,2]
[403016041,1769063439114,-173.19357025,0.00021064,2]
[403016042,1769063439123,-173.19357025,0.00021067,2]
[403016043,1769063439133,-496.47127164,0.00021072,2]
[403016044,1769063439143,-2398.4119403,0.00021072,2]
[403016045,1769063439152,-276.30885744,0.000211,2]
[403016046,1769063439162,-610.18078132,0.000211,2]
[403016047,1769063439171,-1098.32540637,0.000211,2]
[403016048,1769063439180,-150.0,0.000211,10]
[403016049,1769063439189,-497.35594339,0.000211,2]
[403016050,1769063439199,-3125.8450011,0.00021107,2]
[403016051,1769063439208,-155.13000003,0.00021115,2]
[403016052,1769063439218,-355.00291567,0.00021134,2]
[403016053,1769063439227,-251.67592197,0.00021138,60]
[403016054,1769063439236,-202.31452522,0.00021138,60]
[403016055,1769063439246,-201.05138817,0.00021138,60]
[403016056,1769063439255,-500.0,0.00021138,60]
[403016057,1769063439265,-251.25196849,0.00021138,60]
[403016058,1769063439275,-200.63258103,0.00021138,60]
[403016059,1769063439284,-500.0,0.00021138,60]
[403016060,1769063439294,-486.0,0.00021138,60]
[403016061,1769063439303,-161.43290974,0.00021138,60]
[403016062,1769063439313,-500.0,0.00021138,60]
[403016063,1769063439323,-500.0,0.00021138,60]
[403016064,1769063439332,-151.0,0.00021147,2]
[403016065,1769063439341,-50912.64,0.00021157,10]
[403016066,1769063439351,-42427.2,0.00021157,10]
[403016067,1769063439360,-151.0,0.00021157,2]
[403016068,1769063439370,-151.0,0.00021157,2]
[403016069,1769063439380,-6251.72,0.00021166,2]
[403016070,1769063439390,-245.79,0.00021167,2]
[403016071,1769063439399,-151.0,0.00021167,2]
[403016072,1769063439409,-151.0,0.00021167,2]
[403016073,1769063439419,-151.0,0.00021167,2]
[403016074,1769063439428,-224.872712,0.00021167,2]
[403016075,1769063439437,-859050.6388668,0.00021167,2]
[403016076,1769063439452,-8969.16794341,0.00021167,2]
[403016077,1769063439464,-2684.0,0.00021167,2]
[403016085,1769063441210,-3e-08,0.00021167,2]
[403016086,1769063441224,-851.46063097,0.00021167,2]
[403016087,1769063441244,-1987.87049881,0.00019749,2]
[403016091,1769063443885,-5132.95729005,0.00019749,2]
[403016092,1769063443915,-2879.18221114,0.00019749,2]
[403016093,1769063443925,-500.0,0.00020864,60]
[403016094,1769063443935,-500.0,0.00021001,60]
[403016095,1769063443945,-500.0,0.00021138,60]
[403016096,1769063443954,-4718.54778886,0.00021167,2]
[403016109,1769063446852,-500.0,0.00020864,60]
[403016110,1769063446864,-500.0,0.00020864,60]
[403016111,1769063446873,-500.0,0.00021001,60]
[403016112,1769063446884,-612.86633803,0.00021001,60]
[403016113,1769063446895,-500.0,0.00021138,60]
[403016114,1769063446905,-81522.14696929,0.00021167,2]
[403016115,1769063461457,-505.58774595,0.000156,2]
[403016116,1769063464142,-208.23196804,0.00015599,2]
[403016117,1769063466461,-91.76803196,0.00015599,2]
[403016118,1769063466485,-122.21261292,0.000156,2]
[403016124,1769063468855,-166.66666668,0.000156,2]
[403016125,1769063470445,-205.53297445,0.000156,2]
[403016126,1769063470472,-548.41817762,0.000156,2]
[403016127,1769063475478,-293.55100673,0.000156,2]
[403016128,1769063479817,-158.03081565,0.000156,2]
[403016129,1769063479839,-185.65918435,0.000156,2]
[403016130,1769063482420,-300.0,0.000156,2]
[403016131,1769063483974,-155.45899327,0.000156,2]
[403016132,1769063496366,150.0,0.00014464,2]
[403016133,1769063566721,-151.46,0.00015153,2]
[403016134,1769063566746,-77.8476529,0.00015599,2]
[403016135,1769063568699,-222.1523471,0.00015599,2]
[403016136,1769063568724,-112.34960679,0.000156,2]
[403016137,1769063570312,-246.53221559,0.000156,2]
[403016138,1769063570335,-76.10048897,0.000156,2]
[403016139,1769063575205,-228.92096661,0.000156,2]
[403016140,1769063575238,150.0,0.00014438,2]
[403016141,1769063576633,-150.0,0.00015126,2]
[403016142,1769063576655,-63.14155788,0.000156,2]
[403016143,1769063578695,-204.5946252,0.000156,2]
[403016144,1769063580713,-273.90436806,0.000156,2]
[403016145,1769063583544,-153.33799328,0.000156,2]
[403016146,1769063583567,-9.15526864,0.000156,2]
[403016147,1769063586555,-181.29022132,0.000156,2]
[403016148,1769063589964,-196.62144387,0.000156,2]
[403016149,1769063591485,-276.25064873,0.000156,2]
[403016150,1769063596397,-217.02104555,0.000156,2]
[403016151,1769063600836,-119.66137189,0.000156,2]
[403016152,1769063600860,-121.82859198,0.000156,2]
[403016153,1769063604535,-282.97895445,0.000156,2]
[403016154,1769063626410,-452.35469874,0.000156,2]
[403016155,1769063630785,-142.83775483,0.000156,2]
[403016156,1769063630808,-346.87934654,0.000156,2]
[403016157,1769063634187,-266.50508567,0.000156,2]
[403016158,1769063637765,-386.61556779,0.000156,2]
[403016159,1769063637786,-30.02842996,0.000156,2]
[403016160,1769063640536,-174.59966606,0.000156,2]
[403016161,1769063643241,-500.0,0.000156,2]
[403016162,1769063646587,-295.37190398,0.000156,2]
[403016163,1769063646611,-39.82375415,0.000156,2]
[403016164,1769063651375,-173.23684724,0.000156,2]
[403016165,1769063654149,-341.2434867,0.000156,2]
[403016166,1769063655732,-206.22919274,0.000156,2]
[403016167,1769063657922,150.0,0.0001444,2]
[403016168,1769063672218,-178.93984212,0.00015128,2]
[403016169,1769063674663,-1.94015788,0.00015128,2]
[403016170,1769063674686,-239.46671917,0.000156,2]
[403016171,1769063674707,-18.75235201,0.000156,2]
[403016172,1769063677278,-173.07310362,0.000156,2]
[403016173,1769063679555,-347.49643929,0.000156,2]
[403016174,1769063682715,-175.6535596,0.000156,2]
[403016175,1769063685227,-168.66691581,0.000156,2]
[403016176,1769063687809,-116.35762967,0.000156,2]
[403016177,1769063687831,-121.71973637,0.000156,2]
[403016178,1769063689805,-241.4242656,0.000156,2]
[403016179,1769063716509,-209.21092804,0.00015578,2]
[403016180,1769063719263,-235.83450826,0.00015578,2]
[403016181,1769063719286,-26.0881257,0.000156,2]
[403016182,1769063731469,-163.29767833,0.000156,2]
[403016183,1769063731495,-124.58313026,0.00015708,2]
[403016184,1769063744220,150.0,0.00014385,2]
[403016185,1769063746433,-243.13,0.0001507,2]
[403016186,1769063746459,-25.41686974,0.00015708,2]
[403016187,1769063746487,-100.11666951,0.00015755,2]
[403016188,1769063825113,150.0,0.00014408,2]
[403016189,1769063836450,-247.29,0.00015094,2]
[403016190,1769063836492,-141.04261359,0.0001578,2]
[403016191,1769063879806,209.45,3.8e-06,2]
[403016192,1769063905511,150.0,0.00014411,2]
[403016193,1769063911972,-243.47,0.00015098,2]
[403016194,1769063911998,-101.72028159,0.00015784,2]
[403016197,1769063985521,150.0,0.00014418,2]
[403016198,1769064001410,-239.65,0.00015104,2]
[403016199,1769064001434,-159.22043164,0.00015448,2]
[403016200,1769064001459,-186.43814458,0.00015791,2]
[403016201,1769064064103,150.0,0.00014403,2]
[403016202,1769064076463,-224.99,0.00015089,2]
[403016203,1769064076490,-164.80848523,0.00015775,2]
[403016204,1769064142662,150.0,0.00014429,2]
[403016205,1769064151426,-211.25,0.00015116,2]
[403016206,1769064151452,-316.87,0.00015803,2]
[403016207,1769064151476,-280.67097989,0.0001649,2]
[403016208,1769064221554,150.0,0.00014418,2]
[403016209,1769064228947,-207.43,0.00015105,2]
[403016210,1769064228976,-108.54520595,0.00015791,2]
[403016211,1769064231499,-202.60479405,0.00015791,2]
[403016212,1769064231524,-197.87158089,0.00016478,2]
[403016213,1769064241498,-216.98841911,0.00016478,2]
[403016214,1769064241521,-26.60158089,0.00016801,2]
[403016215,1769064247594,-160.03622394,0.00016801,2]
[403016216,1769064249370,-326.12377606,0.00016801,2]
[403016217,1769064253866,-221.38748821,0.00016801,2]
[403016218,1769064256082,-300.0,0.00016801,2]
[403016219,1769064300095,150.0,0.00014422,2]
[403016220,1769064316631,-205.13,0.00015108,2]
[403016221,1769064316658,-81.13583423,0.00015795,2]
[403016222,1769064321098,-202.60010965,0.00015795,2]
[403016223,1769064322650,-23.96405612,0.00015795,2]
[403016224,1769064322679,-138.97222201,0.00016482,2]
[403016225,1769064325421,-162.03799134,0.00016482,2]
[403016226,1769064378861,150.0,0.00014426,2]
[403016227,1769064384992,-189.88,0.00015113,2]
[403016228,1769064387636,-184.24692763,0.000158,2]
[403016229,1769064390118,-100.57307237,0.000158,2]
[403016230,1769064390145,-135.79299504,0.00016487,2]
[403016231,1769064394178,-203.64178857,0.00016487,2]
[403016232,1769064399993,-40.32521639,0.00016487,2]
[403016233,1769064400020,-204.29986134,0.00017163,2]
[403016234,1769064403464,-298.05357386,0.00017163,2]
[403016235,1769064405670,-157.51395129,0.00017163,2]
[403016236,1769064408340,-177.88070623,0.00017163,2]
[403016237,1769064421424,-157.43190386,0.00017163,2]
[403016241,1769064457923,150.0,0.00014431,2]
[403016242,1769064467188,-181.08,0.00015118,2]
[403016243,1769064467218,-130.39599456,0.00015805,2]
[403016244,1769064470325,-141.22400544,0.00015805,2]
[403016245,1769064470361,-160.62911032,0.00016492,2]
[403016246,1769064471933,-201.53088968,0.00016492,2]
[403016247,1769064471961,-9.38352257,0.00017157,2]
[403016248,1769064474079,-173.58256218,0.00017157,2]
[403016249,1769064475649,-420.97831125,0.00017157,2]
[403016250,1769064496395,-411.39720033,0.00017157,2]
[403016251,1769064499729,-26.32507034,0.00017157,2]
[403016252,1769064499758,-256.31033505,0.00017179,2]
[403016253,1769064504304,-181.56102041,0.00017179,2]
[403016254,1769064535804,150.0,0.00014419,2]
[403016255,1769064536230,177.76,0.00015106,2]
[403016256,1769064541497,-228.48314695,0.00015793,2]
[403016257,1769064544726,-38.14685305,0.00015793,2]
[403016258,1769064544752,-221.20485186,0.00016479,2]
[403016259,1769064546366,-134.30514814,0.00016479,2]
[403016260,1769064546394,-41.49383734,0.00017166,2]
[403016261,1769064547948,-253.08533024,0.00017166,2]
[403016262,1769064559228,916.53502112,0.00015113,2]
[403016263,1769064622134,150.0,0.00014414,2]
[403016264,1769064622553,150.91,0.000151,2]
[403016298,1769064631747,-226.36,0.00015786,2]
[403016300,1769064631757,-174.79789213,0.00016473,2]
[403016304,1769064631811,-127.01210787,0.00016473,2]
[403016305,1769064631822,-377.26,0.00017159,2]
[403016306,1769064631833,-445.0454363,0.00017607,2]
[403016307,1769064631843,-150.0,0.0001773,2]
[403016308,1769064631852,-452.72,0.00017845,2]
[403016310,1769064631863,-1041.66666667,0.00017852,2]
[403016312,1769064631874,-127.78361674,0.00018403,2]
[403016328,1769064637939,-2114.21638326,0.00018403,2]
[403016329,1769064637947,-729.0,0.00018445,2]
[403016330,1769064637956,-729.0,0.00018445,2]
[403016331,1769064637967,-528.17,0.00018532,2]
[403016332,1769064637977,-300.0,0.00019021,2]
[403016333,1769064637986,-206.0,0.00019021,2]
[403016334,1769064637996,-3877.0,0.00019022,2]
[403016335,1769064638006,-164.0,0.00019068,3]
[403016336,1769064638015,-603.62,0.00019218,2]
[403016337,1769064638025,-729.0,0.0001928,2]
[403016338,1769064638034,-729.0,0.00019503,2]
[403016339,1769064638044,-750.0,0.00019503,2]
[403016340,1769064638053,-729.0,0.00019584,2]
[403016341,1769064638062,-445.0454363,0.00019636,2]
[403016342,1769064638071,-177.0,0.0001973,2]
[403016343,1769064638080,-679.07,0.00019904,2]
[403016344,1769064638089,-2230.315306,0.00019994,2]
[403016345,1769064638099,-461.67526834,0.00019994,2]
[403016346,1769064638108,-329.65062234,0.0002,7]
[403016347,1769064638118,-1334.62437518,0.0002,7]
[403016348,1769064638127,-729.0,0.00020128,2]
[403016349,1769064638136,-150.617,0.00020174,2]
[403016350,1769064638145,-194.4589902,0.00020451,2]
[403016351,1769064638155,-729.0,0.00020463,2]
[403016352,1769064638165,-729.0,0.00020483,2]
[403016353,1769064638174,-488.72,0.00020483,2]
[403016354,1769064638183,-3877.0,0.00020497,2]
[403016355,1769064638193,-2312.83697232,0.00020542,2]
[403016356,1769064638202,-478.75725327,0.00020542,2]
[403016357,1769064638211,-297.84,0.00020548,5]
[403016358,1769064638220,-470.1897486,0.00020591,2]
[403016359,1769064638231,-284.3402514,0.00020591,2]